bitfinex/quotes_ETHUSD_20250801
["timestamp","ask_amount","ask_price","bid_price","bid_amount"]
[1754052545692,0.001,3672.8,3672.6,0.136]
[1754052545907,0.001,3672.8,3672.2,0.54713279]
[1754052545908,0.4511,3672.8,3672.2,0.20446121]
[1754052546078,0.457,3672.7,3672.4,0.136]
[1754052546477,0.4511,3672.8,3672.4,0.136]
[1754052546478,0.9071,3672.6,3672.4,0.136]
[1754052546677,0.4501,3672.5,3672.4,0.136]
[1754052547490,0.9071,3672.5,3672.4,0.136]
[1754052548781,0.4501,3672.5,3672.4,0.136]
[1754052549172,0.9071,3672.5,3672.4,0.136]
[1754052549371,0.9071,3672.5,3672.2,0.33874966]
[1754052549576,0.9071,3672.4,3672.2,0.136]
[1754052549770,0.4501,3672.3,3672.2,0.136]
[1754052549997,0.5861,3672.7,3672.2,0.136]
[1754052550171,0.5861,3672.7,3672.2,0.72213842]
[1754052550371,0.593,3672.7,3672.2,0.72213842]
[1754052550601,0.4501,3672.6,3672.2,0.72213842]
[1754052551079,0.4501,3672.5,3672.2,0.72213842]
[1754052551289,0.136,3672.7,3672.2,0.72213842]
[1754052551290,0.9071,3672.4,3672.2,0.136]
[1754052551507,0.4501,3672.4,3672.2,0.136]
[1754052551811,0.457,3672.4,3672.2,0.136]
[1754052551973,0.4501,3672.4,3672.2,0.136]
[1754052552723,0.136,3672.7,3672.2,0.33695165]
[1754052553015,0.4501,3672.3,3672.2,0.33695165]
[1754052553220,0.4501,3672.3,3672.2,0.20095165]
[1754052553425,0.4501,3672.7,3672.2,0.95404682]
[1754052553576,0.001,3672.8,3672.2,0.75309517]
[1754052553777,0.9071,3672.7,3672.2,0.75309517]
[1754052554012,0.9071,3672.6,3672.2,0.75309517]
[1754052554208,0.4501,3672.5,3672.2,0.75309517]
[1754052554717,0.457,3672.5,3672.2,0.75309517]
[1754052554876,0.4501,3672.4,3672.2,0.75309517]
[1754052555317,0.4501,3672.3,3672.2,0.75309517]
[1754052555888,0.4501,3672.3,3671.9,0.002]
[1754052556091,0.457,3672.2,3671.9,0.002]
[1754052556274,0.457,3672.2,3671.9,3.002]
[1754052556498,0.001,3672.8,3671.9,3.002]
[1754052556826,0.4756,3672.5,3672.0,0.02723311]
[1754052557034,0.001,3672.8,3672.0,0.76275642]
[1754052557327,0.4756,3672.4,3672.0,0.73552331]
[1754052557502,0.001,3672.8,3672.0,0.73552331]
[1754052557719,0.9302,3672.3,3671.9,3.002]
[1754052558041,0.9302,3672.2,3671.9,3.002]
[1754052558340,0.001,3672.8,3671.9,3.002]
[1754052558630,0.9302,3672.7,3671.9,3.002]
[1754052558816,0.001,3672.8,3671.9,3.002]
[1754052559023,0.9302,3672.6,3671.9,3.002]
[1754052559322,0.9302,3672.5,3671.9,0.002]
[1754052559530,0.9302,3672.4,3671.9,0.002]
[1754052559834,0.9302,3672.3,3671.9,0.002]
[1754052560002,0.9302,3672.2,3671.9,0.002]
[1754052560212,0.9302,3672.1,3671.9,0.002]
[1754052560537,0.9302,3672.0,3671.9,0.002]
[1754052560737,0.551,3672.8,3671.9,0.002]
[1754052560941,0.9302,3672.0,3671.9,0.002]
[1754052561307,0.4756,3672.2,3671.9,0.002]
[1754052561520,0.4756,3672.7,3671.9,0.002]
[1754052561719,0.4546,3672.6,3671.9,0.002]
[1754052562104,0.4756,3672.5,3671.9,0.002]
[1754052562497,0.4546,3672.4,3671.9,0.002]
[1754052562889,0.55,3672.2,3671.9,0.002]
[1754052563117,0.14802,3672.1,3671.9,0.002]
[1754052563320,1.07822,3672.1,3671.9,0.002]
[1754052563544,1.21422,3672.1,3671.9,0.002]
[1754052563691,0.9302,3672.0,3671.9,0.002]
[1754052569624,0.136,3672.1,3671.9,0.002]
[1754052569824,0.136,3672.1,3671.9,4.17849517]
[1754052570435,0.001,3672.3,3671.9,4.31449517]
[1754052570845,0.4766,3672.3,3671.9,1.31449517]
[1754052571120,0.4766,3672.3,3671.9,0.138]
[1754052571728,0.9302,3672.2,3671.9,0.002]
[1754052571935,0.136,3672.0,3671.9,0.002]
[1754052572240,1.0662,3672.0,3671.9,0.002]
[1754052574670,1.6162,3672.0,3671.9,0.002]
[1754052574854,1.77792,3672.0,3671.9,0.002]
[1754052575872,4.50123154,3672.0,3671.9,0.002]
[1754052576174,8.82123154,3672.0,3671.9,0.002]
[1754052577029,11.82123154,3672.0,3671.9,0.002]
[1754052577363,13.45923154,3672.0,3671.9,0.002]
[1754052577770,10.45923154,3672.0,3671.9,0.002]
[1754052578947,13.45923154,3672.0,3671.9,0.002]
[1754052580645,6.95123154,3672.0,3671.9,0.002]
[1754052580874,11.27123154,3672.0,3671.9,0.002]
[1754052581568,11.82123154,3672.0,3671.9,0.002]
[1754052582078,9.09792,3672.0,3671.9,0.002]
[1754052582872,6.09792,3672.0,3671.9,0.002]
[1754052583183,9.09792,3672.0,3671.9,0.002]
[1754052583676,11.82123154,3672.0,3671.9,0.002]
[1754052584061,2.72360823,3671.6,3671.5,0.002]
[1754052584221,0.89970964,3671.6,3671.5,0.002]
[1754052584500,8.9342,3671.6,3671.5,0.002]
[1754052584681,11.65780823,3671.6,3671.5,0.002]
[1754052585096,8.9342,3671.6,3671.5,0.002]
[1754052585305,11.65780823,3671.6,3671.5,0.002]
[1754052585516,8.9342,3671.6,3671.5,0.002]
[1754052585806,13.09592406,3671.6,3671.5,0.002]
[1754052587678,10.37231583,3671.6,3671.5,0.002]
[1754052587888,10.37131583,3671.6,3671.5,0.002]
[1754052588422,13.09492406,3671.6,3671.5,0.002]
[1754052588918,10.37131583,3671.6,3671.5,0.002]
[1754052589083,13.09492406,3671.6,3671.5,0.002]
[1754052589732,3.27390499,3671.2,3671.1,0.022]
[1754052590027,11.35429549,3671.2,3671.1,0.022]
[1754052590385,12.27139549,3671.2,3671.1,0.022]
[1754052591546,9.5474905,3671.2,3671.1,0.022]
[1754052593624,12.27139549,3671.2,3671.1,0.022]
[1754052593931,9.5474905,3671.2,3671.1,0.022]
[1754052594286,12.27139549,3671.2,3671.1,0.022]
[1754052598622,13.90939549,3671.2,3671.1,0.022]
[1754052599645,14.16390282,3671.2,3671.1,0.022]
[1754052600025,44.16390282,3671.2,3671.1,0.022]
[1754052600255,44.16390282,3671.2,3671.1,1e-08]
[1754052600423,43.90939549,3671.2,3671.1,1e-08]
[1754052601563,46.78339549,3671.2,3671.1,1e-08]
[1754052601849,64.28806515,3671.2,3671.1,1e-08]
[1754052602157,34.91257292,3670.3,3669.1,0.02]
[1754052602451,50.81269777,3670.3,3669.1,0.02]
[1754052602657,40.78664715,3670.2,3670.1,1e-08]
[1754052602873,7.91338973,3669.2,3669.1,0.02]
[1754052603072,12.22738973,3669.2,3669.1,0.02]
[1754052603385,14.77575873,3669.2,3669.1,0.02]
[1754052606443,51.77575873,3669.2,3669.1,1e-08]
[1754052606852,21.77575873,3669.2,3669.1,1e-08]
[1754052607275,3.27598408,3668.4,3668.1,0.01400002]
[1754052607432,17.13998408,3668.4,3668.3,1e-08]
[1754052607636,48.05708408,3668.4,3668.3,1e-08]
[1754052608269,13.74308408,3668.4,3668.3,1e-08]
[1754052608580,19.95920893,3668.4,3668.3,1e-08]
[1754052609748,26.95920893,3668.4,3668.3,1e-08]
[1754052610057,26.04210893,3668.4,3668.3,1e-08]
[1754052610257,26.51470893,3668.4,3668.3,1e-08]
[1754052611186,26.95920893,3668.4,3668.3,1e-08]
[1754052611359,21.72810893,3668.4,3668.3,1e-08]
[1754052611545,26.04210893,3668.4,3668.3,1e-08]
[1754052611951,26.51470893,3668.4,3668.3,1e-08]
[1754052612688,17.863,3668.4,3668.3,0.00610001]
[1754052613045,20.863,3668.4,3668.3,0.00610001]
[1754052613881,17.863,3668.4,3668.3,0.00610001]
[1754052614137,20.863,3668.4,3668.3,1e-08]
[1754052614250,21.413,3668.4,3668.3,1e-08]
[1754052614446,26.64459016,3668.4,3668.3,1e-08]
[1754052614873,27.56169016,3668.4,3668.3,1e-08]
[1754052615086,20.56169016,3668.4,3668.3,1e-08]
[1754052616157,50.56169016,3668.4,3668.3,1e-08]
[1754052616798,20.56169016,3668.4,3668.3,1e-08]
[1754052617384,50.69769016,3668.4,3668.3,1e-08]
[1754052621469,52.33569016,3668.4,3668.3,1e-08]
[1754052622882,22.33569016,3668.4,3668.3,1e-08]
[1754052623084,52.33569016,3668.4,3668.3,1e-08]
[1754052623498,7.9141327,3668.2,3668.1,0.01400002]
[1754052623685,13.11792047,3668.2,3668.1,0.01400002]
[1754052623885,14.08012047,3668.2,3668.1,0.01400002]
[1754052624308,14.21612047,3668.2,3668.1,0.01400002]
[1754052625899,44.21612047,3668.2,3668.1,0.01400002]
[1754052626279,44.46957785,3668.2,3668.1,0.01400002]
[1754052626639,44.46957354,3668.2,3668.1,0.01400002]
[1754052627331,6.27628135,3668.0,3667.9,0.002]
[1754052627481,42.47773442,3668.0,3667.9,0.002]
[1754052627684,43.57593442,3668.0,3667.9,0.002]
[1754052628898,37.91435568,3667.9,3667.8,1e-08]
[1754052629183,37.91457868,3667.6,3667.5,1e-08]
[1754052629328,42.47803175,3667.6,3667.5,1e-08]
[1754052629489,43.57623175,3667.6,3667.5,1e-08]
[1754052629690,44.46801952,3667.6,3667.5,1e-08]
[1754052629908,44.60376486,3667.6,3667.5,1e-08]
[1754052631516,51.60376486,3667.6,3667.5,1e-08]
[1754052633428,51.71310386,3667.6,3667.5,1e-08]
[1754052633627,3.27739669,3666.5,3666.4,0.002]
[1754052633844,17.14139669,3666.5,3666.4,0.002]
[1754052634022,17.27739669,3666.5,3666.4,0.002]
[1754052634348,17.77709669,3666.5,3666.4,0.002]
[1754052634529,17.27739669,3666.5,3666.4,0.002]
[1754052634692,19.53788748,3666.5,3666.4,0.002]
[1754052635998,26.53788748,3666.5,3666.4,0.002]
[1754052636619,28.17588748,3666.5,3666.4,0.002]
[1754052636809,28.43058745,3666.5,3666.4,0.002]
[1754052637534,28.93028745,3666.5,3666.4,0.002]
[1754052638298,59.39278745,3666.5,3666.4,0.002]
[1754052639515,29.39278745,3666.5,3666.4,1e-08]
[1754052639710,59.39278745,3666.5,3666.4,1e-08]
[1754052640218,59.50215745,3666.5,3666.4,1e-08]
[1754052642127,23.68095745,3666.5,3666.4,1e-08]
[1754052642356,21.31109666,3666.5,3666.4,1e-08]
[1754052642660,21.31109666,3666.5,3666.4,0.00610001]
[1754052642661,25.61809666,3666.5,3666.4,0.00610001]
[1754052642855,25.61809666,3666.5,3666.4,1e-08]
[1754052642856,18.58369997,3666.5,3666.4,1e-08]
[1754052643020,22.89069997,3666.5,3666.4,1e-08]
[1754052643221,18.58363861,3666.5,3666.4,1e-08]
[1754052643574,59.26133128,3666.5,3666.4,1e-08]
[1754052643917,22.26133128,3666.5,3666.4,1e-08]
[1754052644255,3.27761987,3666.2,3666.1,0.02]
[1754052644565,42.61325848,3666.2,3666.1,0.02]
[1754052644770,43.57545848,3666.2,3666.1,0.02]
[1754052644934,44.84175635,3666.2,3666.1,0.02]
[1754052645649,0.55,3665.2,3664.5,0.0061]
[1754052645855,4.9938,3665.2,3664.9,0.0061]
[1754052646054,7.72216407,3665.2,3664.6,0.0061]
[1754052646964,11.4541214,3665.2,3664.2,0.0061]
[1754052647148,14.0140214,3665.2,3664.1,0.02]
[1754052647971,21.0140214,3665.2,3664.1,0.02]
[1754052648255,51.0140214,3665.2,3664.1,0.02]
[1754052648850,51.0140214,3665.2,3665.1,1e-08]
[1754052649856,46.7070214,3665.2,3665.1,1e-08]
[1754052650059,12.72836407,3665.2,3665.1,1e-08]
[1754052650228,17.03436407,3665.2,3665.1,1e-08]
[1754052650623,17.58436407,3665.2,3665.1,1e-08]
[1754052650956,18.06816407,3665.2,3665.1,1e-08]
[1754052651162,19.70616407,3665.2,3665.1,1e-08]
[1754052651369,22.68617366,3665.2,3665.1,1e-08]
[1754052651528,22.68616632,3665.2,3665.1,1e-08]
[1754052651931,22.43151321,3665.2,3665.1,1e-08]
[1754052652328,22.68616179,3665.2,3665.1,1e-08]
[1754052652764,52.68616179,3665.2,3665.1,1e-08]
[1754052654261,53.11337787,3665.2,3665.1,1e-08]
[1754052654931,23.11337787,3665.2,3665.1,1e-08]
[1754052655355,52.96813929,3665.2,3665.1,1e-08]
[1754052655629,53.22270644,3665.2,3665.1,1e-08]
[1754052655851,46.22270644,3665.2,3665.1,1e-08]
[1754052656252,34.91666186,3664.8,3664.7,1e-08]
[1754052656555,48.78066186,3664.8,3664.7,1e-08]
[1754052656731,49.70256186,3664.8,3664.7,1e-08]
[1754052658738,50.06675172,3664.8,3664.7,1e-08]
[1754052660207,50.39938798,3664.8,3664.7,1e-08]
[1754052660336,46.10614959,3664.8,3664.7,1e-08]
[1754052660648,13.98422972,3664.8,3664.7,1e-08]
[1754052660843,9.95056786,3664.8,3664.7,1e-08]
[1754052661171,13.98322972,3664.8,3664.7,0.00610001]
[1754052661474,16.98304887,3664.8,3664.7,1e-08]
[1754052661767,13.98304887,3664.8,3664.7,1e-08]
[1754052661971,19.90421123,3664.8,3664.7,1e-08]
[1754052662178,21.54221123,3664.8,3664.7,1e-08]
[1754052664962,22.02601123,3664.8,3664.7,1e-08]
[1754052665537,22.46411123,3664.8,3664.7,1e-08]
[1754052665731,52.46411123,3664.8,3664.7,1e-08]
[1754052666737,52.46418478,3664.8,3664.7,1e-08]
[1754052668077,52.4641694,3664.8,3664.7,1e-08]
[1754052668252,52.4641694,3664.8,3664.1,0.02]
[1754052668253,2.188,3664.4,3664.1,0.02]
[1754052668447,14.36959372,3664.4,3664.1,0.02]
[1754052668767,14.85339372,3664.4,3664.1,0.02]
[1754052668965,14.96281772,3664.4,3664.1,0.02]
[1754052669166,15.40091772,3664.4,3664.1,0.02]
[1754052669469,37.91710867,3664.2,3664.1,1e-08]
[1754052669672,38.17175385,3664.2,3664.1,1e-08]
[1754052669859,42.61055385,3664.2,3664.1,1e-08]
[1754052670060,43.53245385,3664.2,3664.1,1e-08]
[1754052670362,44.09164336,3664.2,3664.1,1e-08]
[1754052671986,2.72955562,3663.6,3663.5,0.002]
[1754052672189,10.2862008,3663.6,3663.5,0.002]
[1754052672798,10.4230008,3663.6,3663.5,0.002]
[1754052673803,7.4388,3663.6,3663.5,0.002]
[1754052673962,7.4388,3663.6,3663.5,0.0081]
[1754052674565,0.1368,3663.6,3663.5,0.0081]
[1754052674767,4.4388,3663.6,3663.5,0.0081]
[1754052675062,7.16835562,3663.6,3663.5,0.002]
[1754052675266,8.70813826,3663.6,3663.5,0.002]
[1754052675504,11.70813826,3663.6,3663.5,0.002]
[1754052676068,12.19193826,3663.6,3663.5,0.002]
[1754052676266,14.26803826,3663.6,3663.5,0.002]
[1754052676582,13.34513826,3663.6,3663.5,0.002]
[1754052676976,10.71735562,3663.6,3663.5,0.002]
[1754052677469,13.29285562,3663.6,3663.5,0.002]
[1754052677786,12.84795562,3663.6,3663.5,0.002]
[1754052677964,8.05435562,3663.6,3663.5,0.002]
[1754052678165,12.35535562,3663.6,3663.5,0.002]
[1754052678412,9.59003529,3663.6,3663.5,0.002]
[1754052678613,7.4378,3663.6,3663.5,0.002]
[1754052678923,10.71735562,3663.6,3663.5,0.002]
[1754052679132,11.65485562,3663.6,3663.5,0.002]
[1754052679268,11.91009061,3663.6,3663.5,0.002]
[1754052679464,14.83909384,3663.6,3663.5,0.002]
[1754052679787,15.28402671,3663.6,3663.5,0.002]
[1754052680898,45.28402671,3663.6,3663.5,0.002]
[1754052681286,10.98402671,3663.6,3663.5,0.002]
[1754052681482,14.83912671,3663.6,3663.5,0.002]
[1754052681812,14.94857471,3663.6,3663.5,0.002]
[1754052681973,14.34652671,3663.6,3663.5,0.002]
[1754052682173,9.49652671,3663.6,3663.5,0.002]
[1754052682510,3.39206786,3663.6,3663.5,0.002]
[1754052682679,4.69206786,3663.6,3663.5,0.002]
[1754052682883,7.42162348,3663.6,3663.5,0.002]
[1754052683091,4.69206786,3663.6,3663.5,0.002]
[1754052683265,10.39206786,3663.6,3663.5,0.002]
[1754052683670,13.12162348,3663.6,3663.5,0.002]
[1754052683903,17.34205502,3663.6,3663.5,0.002]
[1754052684103,14.6124994,3663.6,3663.5,0.002]
[1754052685013,15.1624994,3663.6,3663.5,0.002]
[1754052685205,17.89205502,3663.6,3663.5,0.002]
[1754052685408,10.8624994,3663.6,3663.5,0.002]
[1754052685613,10.3124994,3663.6,3663.5,0.002]
[1754052685820,14.6114994,3663.6,3663.5,0.0081]
[1754052686818,7.3124994,3663.6,3663.5,0.0081]
[1754052686981,7.39206786,3663.6,3663.5,0.0081]
[1754052687177,14.69106786,3663.6,3663.5,0.0081]
[1754052687706,7.69106786,3663.6,3663.5,0.0081]
[1754052688221,7.69106786,3663.6,3663.5,0.002]
[1754052688370,7.69106786,3663.6,3663.5,0.0081]
[1754052688575,3.39206786,3663.6,3663.5,0.0081]
[1754052688794,7.69006786,3663.6,3663.5,0.0081]
[1754052689025,4.298,3663.6,3663.5,0.0081]
[1754052689600,4.55372312,3663.6,3663.5,0.0081]
[1754052689800,4.298,3663.6,3663.5,0.0081]
[1754052690938,0.1368,3663.7,3663.5,0.0081]
[1754052691142,4.297,3663.6,3663.5,0.0081]
[1754052691358,0.1368,3664.2,3663.6,0.0061]
[1754052691654,0.1368,3664.3,3663.7,17.25012267]
[1754052691944,0.1368,3664.3,3663.8,2.15536341]
[1754052692306,5.30535536,3664.4,3663.9,0.0061]
[1754052692522,1.00835536,3664.4,3663.9,0.0061]
[1754052692919,0.87155536,3664.4,3664.0,0.03339257]
[1754052693144,0.87155536,3664.4,3664.3,20.11595686]
[1754052693445,0.87155536,3664.4,3664.3,20.12205686]
[1754052694544,0.87155536,3664.4,3664.3,17.39302267]
[1754052694755,0.87155536,3664.4,3664.3,20.12205686]
[1754052695248,0.87155536,3664.4,3664.3,17.39302267]
[1754052695429,0.87155536,3664.4,3664.3,22.32722925]
[1754052695809,0.87155536,3664.4,3664.3,19.59819506]
[1754052696025,0.87155536,3664.4,3664.3,22.32722925]
[1754052696449,0.87155536,3664.4,3664.3,19.59819506]
[1754052697241,0.87155536,3664.4,3664.3,22.32722925]
[1754052699008,0.87155536,3664.4,3664.3,19.59819506]
[1754052701129,0.001,3664.8,3664.4,3.0]
[1754052701446,4.56782174,3665.9,3664.6,2.72873644]
[1754052701655,0.136,3665.7,3664.9,17.25012267]
[1754052701838,0.25482174,3665.6,3665.0,0.1368]
[1754052702166,0.25482174,3665.6,3665.0,0.16408512]
[1754052702527,0.25482174,3665.6,3665.0,0.1368]
[1754052702747,0.25482174,3665.6,3665.0,1.42097831]
[1754052703171,0.136,3665.7,3665.0,1.44826343]
[1754052703669,0.136,3665.7,3665.0,4.18287639]
[1754052703873,0.02,3665.9,3665.5,17.25012267]
[1754052704171,0.02,3665.9,3665.8,0.136]
[1754052708908,0.02,3665.9,3665.5,17.74272267]
[1754052709110,0.02,3665.9,3665.8,0.136]
[1754052711606,0.4767,3665.9,3665.8,0.136]
[1754052711901,0.9097,3665.9,3665.6,2.20517239]
[1754052712213,0.4767,3665.9,3665.5,17.41420407]
[1754052712373,0.4767,3665.9,3665.5,17.38692267]
[1754052713197,0.4567,3665.8,3665.5,17.38692267]
[1754052713582,0.4567,3665.7,3665.5,17.38692267]
[1754052713787,0.8897,3665.6,3665.5,2.34996227]
[1754052714093,0.4567,3665.6,3665.5,0.1368]
[1754052714332,0.4767,3665.9,3665.5,0.1368]
[1754052714500,0.02,3665.9,3665.5,17.38692267]
[1754052714814,0.02,3665.9,3665.6,2.01151763]
[1754052714969,0.02,3665.9,3665.6,2.01761763]
[1754052715301,0.02,3665.9,3665.8,0.136]
[1754052715496,0.02,3665.9,3665.8,0.16327917]
[1754052715705,0.02,3665.9,3665.8,0.136]
[1754052715915,0.02,3665.9,3665.8,2.07576403]
[1754052716771,0.02,3665.9,3665.8,13.87495937]
[1754052717403,0.02,3665.9,3665.8,16.60287687]
[1754052717828,0.02,3665.9,3665.8,13.87495937]
[1754052717978,0.02,3665.9,3665.8,16.60287687]
[1754052718280,0.02,3665.9,3665.8,13.87495937]
[1754052718726,0.4767,3665.9,3665.8,13.87495937]
[1754052718912,0.02,3665.9,3665.8,13.87495937]
[1754052719630,0.021,3665.9,3665.8,13.87495937]
[1754052720273,0.9107,3665.9,3665.8,13.87495937]
[1754052721084,0.021,3665.9,3665.8,13.87495937]
[1754052721277,0.001,3666.3,3665.8,13.87495937]
[1754052721472,0.001,3666.3,3665.8,11.93519534]
[1754052721678,0.136,3666.0,3665.3,0.1368]
[1754052721878,0.136,3665.8,3665.3,0.1368]
[1754052722102,0.001,3666.3,3665.6,11.79919534]
[1754052722311,0.001,3666.3,3666.0,11.79919534]
[1754052722312,0.4567,3666.1,3666.0,11.79919534]
[1754052722512,0.137,3666.3,3666.0,11.79919534]
[1754052723010,0.4567,3666.2,3666.0,11.79919534]
[1754052723578,0.4567,3666.2,3666.0,11.93519534]
[1754052724205,0.001,3666.3,3666.0,11.93519534]
[1754052724383,0.001,3666.3,3666.1,1.19351953]
[1754052725308,0.001,3666.3,3666.2,0.136]
[1754052728211,0.001,3666.5,3666.2,2.86361987]
[1754052728423,0.001,3666.5,3666.4,11.93519534]
[1754052730203,0.88778489,3666.8,3666.4,0.136]
[1754052730386,0.88778489,3666.8,3666.5,11.79919534]
[1754052730387,0.8897,3666.7,3666.5,11.79919534]
[1754052730604,0.8897,3666.6,3666.4,0.136]
[1754052730806,0.8897,3666.6,3666.3,0.136]
[1754052731053,1.02378489,3666.8,3666.5,11.79919534]
[1754052731549,1.91348489,3666.8,3666.5,11.79919534]
[1754052731713,1.32078489,3666.8,3666.6,1.19351953]
[1754052731913,0.88778489,3666.8,3666.6,1.19351953]
[1754052732127,1.32078489,3666.8,3666.7,0.136]
[1754052732723,1.77748489,3666.8,3666.7,0.136]
[1754052733453,1.77748489,3666.8,3666.5,11.79919534]
[1754052733652,0.8897,3666.7,3666.5,11.79919534]
[1754052733862,0.88778489,3666.8,3666.6,1.19351953]
[1754052734073,0.88778489,3666.8,3666.6,1.32951953]
[1754052734240,0.4567,3666.7,3666.6,1.32951953]
[1754052734440,0.88778489,3666.8,3666.6,13.12871487]
[1754052734634,0.4567,3666.7,3666.6,13.12871487]
[1754052734955,0.88778489,3666.8,3666.6,13.12871487]
[1754052735286,0.88778489,3666.8,3666.7,1.31287149]
[1754052736658,1.77748489,3666.8,3666.7,1.31287149]
[1754052738247,1.77748489,3666.8,3666.2,11.79919534]
[1754052738558,1.77748489,3666.8,3666.3,4.416]
[1754052738559,0.8922,3666.7,3666.3,4.416]
[1754052738930,1.02378489,3666.8,3666.3,0.136]
[1754052738931,0.8922,3666.6,3666.3,0.136]
[1754052739328,0.8922,3666.5,3666.2,11.79919534]
[1754052739532,0.4636,3666.5,3666.2,11.79919534]
[1754052739757,0.4636,3666.5,3666.4,0.136]
[1754052740377,1.31638489,3666.8,3666.4,0.136]
[1754052740670,1.35138489,3666.8,3666.7,11.79919534]
[1754052740975,1.77998489,3666.8,3666.7,11.79919534]
[1754052741332,0.88778489,3666.8,3666.7,11.79919534]
[1754052741532,0.88778489,3666.8,3666.7,13.40701487]
[1754052742054,1.35138489,3666.8,3666.7,13.40701487]
[1754052742232,1.77998489,3666.8,3666.7,13.40701487]
[1754052742767,1.78098489,3666.8,3666.7,13.40701487]
[1754052743632,1.78098489,3666.8,3666.3,1.60781953]
[1754052743633,1.78098489,3666.8,3666.3,13.40701487]
[1754052743833,0.4286,3666.7,3666.4,4.414]
[1754052744032,0.8922,3666.7,3666.4,0.136]
[1754052744239,0.8922,3666.7,3666.4,4.278]
[1754052744531,0.88878489,3666.8,3666.2,4.278]
[1754052744532,1.0282,3666.6,3666.2,4.278]
[1754052744843,0.8922,3666.5,3666.4,11.79919534]
[1754052745043,0.4286,3666.5,3666.4,11.79919534]
[1754052745243,0.8922,3666.5,3666.4,11.79919534]
[1754052747497,0.8922,3666.5,3665.8,0.002]
[1754052747656,1.0282,3666.4,3665.8,0.138]
[1754052747858,0.8922,3666.3,3665.8,1.44998431]
[1754052748159,0.8922,3666.2,3665.8,1.44998431]
[1754052748406,0.8922,3666.1,3665.8,1.44998431]
[1754052748569,0.8922,3666.0,3665.8,1.44998431]
[1754052748774,0.4286,3666.0,3665.8,1.44998431]
[1754052748954,0.136,3666.4,3665.9,1.75261797]
[1754052749160,0.5996,3666.4,3666.3,11.79919534]
[1754052749360,0.136,3666.4,3666.3,11.79919534]
[1754052749573,0.136,3666.7,3666.3,11.79919534]
[1754052749759,0.136,3666.7,3666.6,11.79919534]
[1754052750077,1.0282,3666.7,3666.6,11.79919534]
[1754052750796,0.88878489,3666.8,3666.6,11.79919534]
[1754052751905,0.4636,3666.7,3666.6,11.79919534]
[1754052752393,3.0,3667.3,3666.6,11.79919534]
[1754052752586,0.136,3666.9,3666.6,11.79919534]
[1754052752786,0.136,3666.9,3666.7,1.62111953]
[1754052753995,0.02,3667.9,3667.8,2.72643001]
[1754052754198,0.02,3667.9,3667.8,13.23919534]
[1754052754379,0.02,3667.9,3667.8,17.8565634]
[1754052754573,0.02,3667.9,3667.8,19.91487607]
[1754052754779,0.02,3667.9,3667.8,20.02412007]
[1754052757372,0.4836,3667.9,3667.8,15.74912007]
[1754052757577,0.9122,3667.9,3667.8,17.8555634]
[1754052758107,0.02,3667.9,3667.8,16.4155634]
[1754052759171,0.02,3667.9,3667.8,16.8792634]
[1754052759374,0.02,3667.9,3667.8,17.2072634]
[1754052759613,0.02,3667.9,3667.8,16.8792634]
[1754052759920,0.02,3667.9,3667.8,18.83984162]
[1754052760076,0.02,3667.9,3667.8,18.37614162]
[1754052760606,0.02,3667.9,3667.8,21.89427163]
[1754052760916,0.001,3668.4,3668.0,2.72628135]
[1754052761077,0.02,3668.9,3668.7,2.72576116]
[1754052761276,0.02,3669.9,3668.9,3.0]
[1754052761482,0.02,3669.9,3668.8,16.37202832]
[1754052761483,0.02,3669.9,3669.7,11.79919534]
[1754052761702,0.02,3669.9,3669.8,4.30024944]
[1754052762029,0.02,3669.9,3669.8,16.07219534]
[1754052762512,0.9122,3669.9,3669.8,11.79919534]
[1754052762821,0.02,3670.9,3669.9,3.0]
[1754052763113,0.4286,3670.8,3670.0,5.713]
[1754052764794,0.4286,3670.8,3670.1,0.4286]
[1754052764795,0.8922,3670.8,3670.1,0.4286]
[1754052765002,0.8922,3670.7,3670.1,0.4286]
[1754052765318,0.8922,3670.6,3669.8,4.4735311]
[1754052765522,0.8922,3670.6,3669.9,0.818932]
[1754052766013,0.8922,3670.5,3669.9,0.818932]
[1754052766216,0.8922,3670.5,3669.8,4.97040421]
[1754052766418,0.02,3670.9,3669.8,4.4735311]
[1754052766419,0.4286,3670.4,3669.8,4.4735311]
[1754052766711,0.8922,3670.4,3669.3,4.27]
[1754052766912,0.9304,3670.3,3669.0,4.27]
[1754052767113,3.9304,3670.3,3669.0,4.27]
[1754052767287,0.9304,3670.2,3668.8,4.54257612]
[1754052767489,0.83980268,3670.1,3668.8,0.27257612]
[1754052767694,1.29590268,3670.1,3668.8,0.27257612]
[1754052767918,0.9304,3670.0,3668.8,0.27257612]
[1754052768119,0.36550268,3670.1,3668.4,0.4583]
[1754052768120,0.9304,3669.9,3668.4,0.4583]
[1754052768323,0.9304,3669.8,3668.4,0.4583]
[1754052768631,0.9304,3669.7,3668.4,0.4583]
[1754052768789,0.9304,3669.6,3668.4,0.20484568]
[1754052768994,0.9304,3669.6,3668.3,0.819194]
[1754052769206,0.9304,3669.5,3668.4,0.3839194]
[1754052769526,4.27,3669.7,3668.4,0.3839194]
[1754052769527,0.9304,3669.4,3668.4,0.3839194]
[1754052769822,0.9304,3669.3,3668.4,0.3839194]
[1754052770023,0.9304,3669.2,3668.4,0.3839194]
[1754052770207,0.9304,3669.2,3668.3,0.2056437]
[1754052770407,0.9304,3669.2,3668.2,0.819237]
[1754052770610,0.9304,3669.1,3668.1,0.02]
[1754052770817,0.9304,3669.1,3668.1,0.22029837]
[1754052771009,0.136,3668.8,3668.3,0.136]
[1754052771411,0.9304,3668.7,3668.3,0.136]
[1754052771738,5.3364,3668.6,3668.1,0.156]